fUST/lending_fUST_20241229
["ID","MTS","AMOUNT","RATE_DAILY","PERIOD"]
[346966892,1735437046852,-508.7221088,0.0001765,2]
[346966893,1735437046862,-504.6356598,0.0001765,2]
[346966894,1735437046871,-548.95344176,0.0001765,2]
[346966895,1735437046879,-504.12699613,0.0001765,2]
[346966896,1735437046888,-500.0,0.0001765,2]
[346966897,1735437046897,-505.24084488,0.0001765,2]
[346966898,1735437046906,-1008.63,0.0001765,2]
[346966899,1735437046915,-1008.63,0.0001765,2]
[346966900,1735437046924,-3118.22,0.0001765,2]
[346966901,1735437046933,-3118.22,0.0001765,2]
[346966902,1735437046942,-3118.22,0.0001765,2]
[346966903,1735437046951,-500.0,0.0001765,2]
[346966904,1735437046961,-500.0,0.0001765,2]
[346966905,1735437046970,-500.0,0.0001765,2]
[346966906,1735437046979,-503.54195776,0.0001765,2]
[346966907,1735437046988,-506.56880944,0.0001765,2]
[346966908,1735437046997,-500.0,0.0001765,2]
[346966909,1735437047006,-502.16621668,0.0001765,2]
[346966910,1735437047015,-500.0,0.0001765,2]
[346966911,1735437047023,-500.0,0.0001765,2]
[346966912,1735437047032,-500.0,0.0001765,2]
[346966913,1735437047041,-500.0,0.0001765,2]
[346966914,1735437047050,-508.41884412,0.0001765,2]
[346966915,1735437047059,-500.77917265,0.0001765,2]
[346966916,1735437047068,-626.92142345,0.0001765,2]
[346966917,1735437047077,-501.55800799,0.0001765,2]
[346966918,1735437047086,-504.57745068,0.0001765,2]
[346966919,1735437047095,-501.43461732,0.0001765,2]
[346966920,1735437047104,-500.0,0.0001765,2]
[346966921,1735437047113,-500.0,0.0001765,2]
[346966922,1735437047122,-502.41324414,0.0001765,2]
[346966923,1735437047131,-3136.93,0.0001765,2]
[346966924,1735437047140,-341.65059055,0.0001765,2]
[346966925,1735437047161,-164.5382448,0.0001765,2]
[346966926,1735437047170,-556.23,0.0001765,2]
[346966927,1735437047179,-116.89372547,0.0001765,2]
[346966929,1735437174845,160.0,0.00025,120]
[346966930,1735437197683,351.0,0.00025,120]
[346966933,1735437454736,255.0,0.000255,30]
[346966934,1735437478706,255.0,0.000255,30]
[346966937,1735437869941,500.0,0.00020765,120]
[346966938,1735437906985,-1313.6,0.00025646,120]
[346966939,1735437937139,-154.02112611,0.00013695,2]
[346966940,1735437937161,-292.08262917,0.00013833,2]
[346966941,1735437937181,-400.0,0.00013973,2]
[346966942,1735437937201,-1985.50168668,0.00016,2]
[346966944,1735437951243,-154.02112611,0.00013422,2]
[346966945,1735437951263,-154.02112611,0.00013558,2]
[346966946,1735437951282,-224.23500832,0.00016,2]
[346966947,1735437951302,-300.0,0.00016651,2]
[346966948,1735437951324,-480.1597181,0.00016652,2]
[346966949,1735437956489,1202.01362,0.000255,120]
[346966950,1735438001940,1000.0,0.00025,120]
[346966951,1735438025100,-1291.10601749,0.00016392,2]
[346966952,1735438028095,-987.451145,0.00016392,2]
[346966953,1735438028119,-45.05120131,0.00016555,2]
[346966954,1735438029832,1000.0,0.00025,120]
[346966955,1735438033958,1000.0,0.00025,120]
[346966956,1735438034601,1000.0,0.00025,120]
[346966957,1735438035126,-254.94879869,0.00016555,2]
[346966958,1735438035151,-500.0,0.00016556,2]
[346966959,1735438035171,-500.0,0.00016556,2]
[346966960,1735438035193,-375.92206546,0.00016556,2]
[346966961,1735438035233,1000.0,0.00025,120]
[346966962,1735438035596,1000.0,0.00025,120]
[346966963,1735438036126,1000.0,0.00025,120]
[346966964,1735438036556,1000.0,0.00025,120]
[346966965,1735438047906,1000.0,0.000255,30]
[346966966,1735438048152,-860.0307345,0.00016442,2]
[346966967,1735438048174,-124.07793454,0.00016556,2]
[346966968,1735438048195,-380.53947789,0.00016556,2]
[346966969,1735438048216,-500.0,0.00016556,2]
[346966970,1735438048239,-315.42758099,0.00016556,2]
[346966971,1735438048261,-127.2182053,0.00016556,2]
[346966972,1735438049016,1000.0,0.000255,30]
[346966973,1735438049836,1000.0,0.000255,30]
[346966974,1735438050328,1000.0,0.000255,30]
[346966975,1735438050640,1000.0,0.000255,30]
[346966976,1735438050965,1000.0,0.000255,30]
[346966977,1735438051285,1000.0,0.000255,30]
[346966978,1735438051847,1000.0,0.000255,30]
[346966979,1735438052256,1000.0,0.000255,30]
[346966980,1735438052824,1000.0,0.000255,30]
[346966981,1735438053868,1000.0,0.000255,30]
[346966982,1735438053995,1000.0,0.000255,30]
[346966983,1735438054567,1000.0,0.000255,30]
[346966984,1735438055135,1000.0,0.000255,30]
[346966985,1735438057417,1000.0,0.000255,30]
[346966986,1735438060433,10000.0,0.000255,30]
[346966987,1735438063920,10000.0,0.000255,30]
[346966988,1735438077673,2608.05,0.000255,30]
[346967166,1735438238231,-500.0,0.00016556,2]
[346967167,1735438238242,-1229.66,0.00016556,2]
[346967168,1735438238252,-500.0,0.00016556,2]
[346967169,1735438238261,-500.0,0.00016556,2]
[346967170,1735438238271,-372.7817947,0.00016556,2]
[346967171,1735438238282,-200.69159421,0.00016556,2]
[346967172,1735438238291,-500.0,0.00016556,2]
[346967173,1735438238301,-517.98784081,0.00016556,2]
[346967174,1735438238309,-500.0,0.00016556,2]
[346967176,1735438238319,-500.0,0.00016556,2]
[346967177,1735438238328,-462.73149906,0.00016556,2]
[346967178,1735438238338,-23568.14908296,0.00016557,2]
[346967450,1735438244522,-145.82633096,0.00016557,2]
[346967550,1735438350900,1566.9,0.000255,30]
[346967551,1735438430809,160735.37169613,0.0002076,30]
[346967556,1735439151789,-241.46619251,0.00012613,2]
[346967557,1735439151810,-241.46619251,0.0001274,2]
[346967558,1735439151831,-500.0,0.00012999,2]
[346967559,1735439151853,-574.72519201,0.00012999,2]
[346967560,1735439151874,-500.0,0.00012999,2]
[346967561,1735439151894,-500.0,0.00012999,2]
[346967562,1735439151914,-257.81021151,0.00012999,2]
[346967570,1735439226100,-530.1316638,0.00012234,2]
[346967571,1735439226126,-241.46619251,0.0001252,2]
[346967572,1735439226151,-239.99141239,0.00012646,2]
[346967573,1735439228227,-896.06275934,0.00012646,2]
[346967574,1735439233088,-450.0,0.00012646,2]
[346967575,1735439244095,-1623.04147425,0.0001252,2]
[346967576,1735439246318,3007.20022769,0.00025,120]
[346967577,1735439253618,-471.03492792,0.0001252,2]
[346967578,1735439253641,-1046.93592176,0.00012646,2]
[346967579,1735439291741,3000.0,0.00025,120]
[346967586,1735439345086,3371.54769469,0.00013,5]
[346967590,1735439400522,1166.33790394,0.00020788,120]
[346967591,1735439408058,3609.98,0.00025,120]
[346967636,1735439432640,-1047.14048041,0.00012646,2]
[346967638,1735439432650,-300.0,0.00012997,2]
[346967640,1735439432660,-500.0,0.00012998,2]
[346967642,1735439432670,-1226.21,0.00012998,2]
[346967644,1735439432679,-500.0,0.00012998,2]
[346967646,1735439432688,-500.0,0.00012998,2]
[346967648,1735439432698,-500.0,0.00012998,2]
[346967650,1735439432707,-500.0,0.00012998,2]
[346967652,1735439432717,-242.18978849,0.00012999,2]
[346967654,1735439432726,-105.57299544,0.00012999,2]
[346967656,1735439432738,-394.42700456,0.00012999,2]
[346967658,1735439432748,-500.0,0.00012999,2]
[346967660,1735439432757,-500.0,0.00012999,2]
[346967662,1735439432766,-500.0,0.00012999,2]
[346967664,1735439432776,-500.0,0.00012999,2]
[346967666,1735439432785,-500.0,0.00012999,2]
[346967668,1735439432795,-500.0,0.00012999,2]
[346967671,1735439432803,-500.0,0.00012999,2]
[346967673,1735439432813,-422.50052477,0.00012999,2]
[346967675,1735439432822,-500.0,0.00012999,2]
[346967677,1735439432831,-506.81430949,0.00012999,2]
[346967679,1735439432841,-500.0,0.00012999,2]
[346967681,1735439432850,-684.52,0.00012999,2]
[346967683,1735439432860,-640.41,0.00012999,2]
[346967685,1735439432869,-616.07,0.00012999,2]
[346967687,1735439432878,-503.74226282,0.00012999,2]
[346967689,1735439432887,-501.96544865,0.00012999,2]
[346967691,1735439432896,-500.0,0.00012999,2]
[346967693,1735439432906,-500.0,0.00012999,2]
[346967695,1735439432915,-500.0,0.00012999,2]
[346967697,1735439432924,-500.0,0.00012999,2]
[346967699,1735439432933,-500.0,0.00012999,2]
[346967701,1735439432942,-500.0,0.00012999,2]
[346967703,1735439432951,-503.78738007,0.00012999,2]
[346967705,1735439432960,-500.0,0.00012999,2]
[346967707,1735439432970,-506.45676653,0.00012999,2]
[346967709,1735439432979,-500.0,0.00012999,2]
[346967711,1735439432988,-500.0,0.00012999,2]
[346967713,1735439432998,-505.58410097,0.00012999,2]
[346967715,1735439433007,-684.4,0.00012999,2]
[346967717,1735439433016,-502.00638919,0.00012999,2]
[346967719,1735439433026,-500.0,0.00012999,2]
[346967721,1735439433035,-500.77988095,0.00012999,2]
[346967723,1735439433044,-640.4118212,0.00013066,2]
[346967725,1735439433054,-500.0,0.00013066,2]
[346967727,1735439433064,-465.1144133,0.00013066,2]
[346967730,1735439433076,-34.8855867,0.00013066,2]
[346967732,1735439433085,-183.2581149,0.00013066,2]
[346967734,1735439433095,-490.37086913,0.00013066,2]
[346967736,1735439433104,-500.0,0.00013066,2]
[346967738,1735439433115,-635.69748991,0.00013067,2]
[346968223,1735439438376,-500.0,0.00012999,2]
[346968225,1735439438385,-339.99999992,0.00013067,2]
[346968227,1735439438396,-324.22683165,0.00013067,2]
[346968230,1735439438411,-1342.68495262,0.00013067,2]
[346968231,1735439438420,-401.40842498,0.00013173,2]
[346968234,1735439438429,-169.467304,0.00013187,2]
[346968235,1735439438438,-169.467304,0.00013253,2]
[346968237,1735439438448,-500.0,0.00013272,2]
[346968240,1735439438457,-1226.21,0.00013272,2]
[346968242,1735439438466,-500.0,0.00013272,2]
[346968244,1735439438476,-500.0,0.00013272,2]
[346968245,1735439438484,-608.34320494,0.00013272,2]
[346968247,1735439438494,-501.99937115,0.00013273,2]
[346968249,1735439438503,-500.0,0.00013273,2]
[346968251,1735439438512,-492.02654873,0.00013273,2]
[346968253,1735439438521,-500.0,0.00013273,2]
[346968255,1735439438530,-500.0,0.00013273,2]
[346968257,1735439438540,-500.0,0.00013273,2]
[346968259,1735439438549,-500.0,0.00013273,2]
[346968261,1735439438559,-333.2,0.00013273,2]
[346968263,1735439438572,-238.08,0.00013273,2]
[346968265,1735439438581,-500.0,0.00013273,2]
[346968267,1735439438590,-500.0,0.00013273,2]
[346968269,1735439438600,-684.52,0.00013273,2]
[346968271,1735439438611,-640.41,0.00013273,2]
[346968273,1735439438620,-616.07,0.00013273,2]
[346968275,1735439438630,-500.0,0.00013273,2]
[346968277,1735439438641,-500.0,0.00013273,2]
[346968279,1735439438650,-400.31188979,0.00013273,2]
[346968281,1735439438659,-500.0,0.00013273,2]
[346968283,1735439438668,-500.0,0.00013273,2]
[346968285,1735439438677,-500.0,0.00013273,2]
[346968287,1735439438687,-500.0,0.00013273,2]
[346968289,1735439438696,-500.0,0.00013273,2]
[346968291,1735439438705,-510.06506793,0.00013273,2]
[346968293,1735439438714,-684.4,0.00013273,2]
[346968295,1735439438722,-500.0,0.00013273,2]
[346968297,1735439438732,-500.0,0.00013546,2]
[346968298,1735439438741,-1226.21,0.00013546,2]
[346968300,1735439438751,-500.0,0.00013546,2]
[346968302,1735439438760,-500.0,0.00013546,2]
[346968303,1735439438769,-500.0,0.00013547,2]
[346968305,1735439438779,-500.0,0.00013547,2]
[346968307,1735439438788,-500.0,0.00013547,2]
[346968308,1735439438797,-500.0,0.00013547,2]
[346968310,1735439438806,-500.0,0.00013547,2]
[346968311,1735439438816,-500.0,0.00013547,2]
[346968312,1735439438826,-500.0,0.00013547,2]
[346968313,1735439438835,-684.52,0.00013547,2]
[346968314,1735439438844,-640.41,0.00013547,2]
[346968315,1735439438853,-616.07,0.00013547,2]
[346968316,1735439438862,-500.0,0.00013547,2]
[346968317,1735439438871,-500.0,0.00013547,2]
[346968318,1735439438881,-523.93819028,0.00013547,2]
[346968319,1735439438890,-500.0,0.00013547,2]
[346968320,1735439438899,-500.0,0.00013547,2]
[346968321,1735439438908,-500.0,0.00013547,2]
[346968322,1735439438917,-500.0,0.00013547,2]
[346968323,1735439438926,-684.4,0.00013547,2]
[346968324,1735439438937,-500.0,0.00013547,2]
[346968325,1735439438947,-1507.93853825,0.00013562,2]
[346968326,1735439438956,-500.0,0.00013699,2]
[346968327,1735439438966,-275.84792105,0.00013699,2]
[346968328,1735439438975,-1226.21,0.0001382,2]
[346968329,1735439438985,-511.14663725,0.0001382,2]
[346968330,1735439438994,-500.0,0.0001382,2]
[346968331,1735439439003,-505.0653262,0.00013821,2]
[346968332,1735439439014,-447.8213692,0.00013821,2]
[346968333,1735439439023,-511.16130928,0.00013821,2]
[346968334,1735439439033,-500.0,0.00013821,2]
[346968335,1735439439043,-623.88820474,0.00013821,2]
[346968336,1735439439052,-500.0,0.00013821,2]
[346968337,1735439439062,-500.0,0.00013821,2]
[346968338,1735439439071,-684.52,0.00013821,2]
[346968339,1735439439080,-640.41,0.00013821,2]
[346968340,1735439439090,-616.07,0.00013821,2]
[346968341,1735439439099,-500.0,0.00013821,2]
[346968342,1735439439108,-500.0,0.00013821,2]
[346968343,1735439439118,-500.0,0.00013821,2]
[346968344,1735439439127,-55.454721,0.00013821,2]
[346968345,1735439439140,-444.545279,0.00013821,2]
[346968346,1735439439149,-500.0,0.00013821,2]
[346968347,1735439439159,-495.42659505,0.00013821,2]
[346968348,1735439439168,-684.4,0.00013821,2]
[346968349,1735439439259,-500.0,0.00013821,2]
[346968350,1735439439269,-400.0,0.00013973,2]
[346968351,1735439439278,-1226.21,0.00014094,2]
[346968352,1735439439288,-500.0,0.00014094,2]
[346968353,1735439439297,-249.41812595,0.00014095,2]
[346968354,1735439439309,-250.58187405,0.00014095,2]
[346968355,1735439439318,-109.41812595,0.00014095,2]
[346968356,1735439439329,-390.58187405,0.00014095,2]
[346968357,1735439439339,-684.52,0.00014095,2]
[346968358,1735439439347,-568.91646401,0.00014095,2]
[346968359,1735439439359,-71.49353599,0.00014095,2]
[346968360,1735439439368,-546.04070823,0.00014095,2]
[346968399,1735439440471,-502.08031955,0.00012998,2]
[346968401,1735439440482,-500.0,0.00012998,2]
[346968403,1735439440491,-500.0,0.00013272,2]
[346968405,1735439440501,-70.02929177,0.00014095,2]
[346968407,1735439440510,-226.89038868,0.00014095,2]
[346968410,1735439440522,-85.94755917,0.00014095,2]
[346968412,1735439440531,-500.0,0.00014095,2]
[346968414,1735439440541,-500.0,0.00014095,2]
[346968416,1735439440550,-500.0,0.00014095,2]
[346968418,1735439440560,-616.92510479,0.00014095,2]
[346968420,1735439440572,-684.4,0.00014095,2]
[346968422,1735439440581,-465.76726474,0.00014095,2]
[346968424,1735439440591,-401.40842494,0.00014247,2]
[346968426,1735439440600,-420.0,0.00014253,2]
[346968428,1735439440609,-595.10550963,0.00014367,2]
[346968430,1735439440618,-1226.21,0.00014368,2]
[346968432,1735439440627,-500.0,0.00014368,2]
[346968434,1735439440638,-500.0,0.00014369,2]
[346968436,1735439440649,-500.0,0.00014369,2]
[346968438,1735439440658,-684.52,0.00014369,2]
[346968440,1735439440667,-640.41,0.00014369,2]
[346968442,1735439440676,-616.07,0.00014369,2]
[346968444,1735439440685,-500.0,0.00014369,2]
[346968446,1735439440695,-500.0,0.00014369,2]
[346968448,1735439440704,-500.0,0.00014369,2]
[346968450,1735439440713,-684.4,0.00014369,2]
[346968452,1735439440722,-191.115769,0.00014369,2]
[346968454,1735439440733,-151.0,0.00014369,2]
[346968456,1735439440742,-152.512093,0.00014369,2]
[346968458,1735439440751,-191.115769,0.00014369,2]
[346968460,1735439440760,-151.0,0.00014369,2]
[346968462,1735439440769,-1226.21,0.00014642,2]
[346968464,1735439440778,-500.0,0.00014642,2]
[346968466,1735439440786,-500.0,0.00014643,2]
[346968467,1735439440797,-500.0,0.00014643,2]
[346968469,1735439440806,-684.52,0.00014643,2]
[346968471,1735439440815,-640.41,0.00014643,2]
[346968474,1735439440825,-616.07,0.00014643,2]
[346968476,1735439440834,-500.0,0.00014643,2]
[346968478,1735439440843,-416.5910513,0.00014643,2]
[346968479,1735439440852,-500.0,0.00014643,2]
[346968482,1735439440861,-684.4,0.00014643,2]
[346968484,1735439440871,-500.0,0.00014846,2]
[346968485,1735439440880,-151.0,0.00014846,2]
[346968488,1735439440890,-500.0,0.00014846,2]
[346968490,1735439440899,-151.0,0.00014846,2]
[346968491,1735439440908,-1936.78,0.00014846,2]
[346968493,1735439440917,-151.0,0.00014846,2]
[346968495,1735439440927,-174.832602,0.00014846,2]
[346968497,1735439440936,-409.54357964,0.00014846,2]
[346968499,1735439440945,-174.832602,0.00014846,2]
[346968502,1735439440955,-849.27,0.00014846,2]
[346968504,1735439440964,-151.0,0.00014846,2]
[346968506,1735439440973,-500.0,0.00014846,2]
[346968507,1735439440983,-500.0,0.00014846,2]
[346968509,1735439440992,-598.73,0.00014846,2]
[346968511,1735439441001,-500.0,0.00014846,2]
[346968513,1735439441010,-450.102748,0.00014846,2]
[346968515,1735439441019,-500.0,0.00014846,2]
[346968517,1735439441029,-151.0,0.00014846,2]
[346968519,1735439441039,-450.102748,0.00014846,2]
[346968521,1735439441048,-151.0,0.00014846,2]
[346968523,1735439441057,-191.115769,0.00014846,2]
[346968526,1735439441068,-745.36,0.00014846,2]
[346968528,1735439441077,-151.0,0.00014846,2]
[346968530,1735439441086,-191.115769,0.00014846,2]
[346968532,1735439441095,-151.0,0.00014846,2]
[346968533,1735439441104,-1218.41,0.00014846,2]
[346968536,1735439441114,-24900.0,0.00014846,2]
[346968538,1735439441123,-500.0,0.00014916,2]
[346968540,1735439441132,-500.0,0.00014916,2]
[346968542,1735439441142,-684.52,0.00014916,2]
[346968544,1735439441151,-640.41,0.00014916,2]
[346968546,1735439441160,-616.07,0.00014916,2]
[346968548,1735439441169,-500.0,0.00014916,2]
[346968550,1735439441178,-500.0,0.00014916,2]
[346968552,1735439441188,-684.4,0.00014916,2]
[346968554,1735439441197,-1226.21,0.00014916,2]
[346968556,1735439441207,-500.0,0.00014916,2]
[346968558,1735439441216,-807.58981922,0.00015019,2]
[346968560,1735439441226,-500.0,0.00015119,2]
[346968562,1735439441236,-503.66096165,0.00015119,2]
[346968564,1735439441245,-1936.78,0.00015119,2]
[346968566,1735439441254,-849.27,0.00015119,2]
[346968568,1735439441264,-500.0,0.00015119,2]
[346968570,1735439441273,-500.0,0.00015119,2]
[346968572,1735439441282,-500.0,0.00015119,2]
[346968574,1735439441292,-745.36,0.00015119,2]
[346968576,1735439441301,-1218.41,0.00015119,2]
[346968578,1735439441310,-500.0,0.0001519,2]
[346968580,1735439441319,-500.0,0.0001519,2]
[346968582,1735439441329,-684.52,0.0001519,2]
[346968584,1735439441338,-640.41,0.0001519,2]
[346968586,1735439441347,-616.07,0.0001519,2]
[346968588,1735439441356,-500.0,0.0001519,2]
[346968590,1735439441365,-500.0,0.0001519,2]
[346968592,1735439441374,-684.4,0.0001519,2]
[346968594,1735439441383,-1226.21,0.0001519,2]
[346968596,1735439441392,-163.20627775,0.0001519,2]
[346968598,1735439441402,-191.115769,0.0001519,2]
[346968600,1735439441411,-248.682836,0.0001519,2]
[346968602,1735439441420,-191.115769,0.0001519,2]
[346968604,1735439441429,-259.305731,0.0001519,2]
[346968606,1735439441439,-401.40842494,0.0001532,2]
[346968608,1735439441448,-503.13766509,0.00015393,2]
[346968610,1735439441457,-1936.78,0.00015393,2]
[346968612,1735439441466,-155.509956,0.00015393,2]
[346968614,1735439441475,-849.27,0.00015393,2]
[346968616,1735439441484,-151.0,0.00015393,2]
[346968618,1735439441493,-500.0,0.00015393,2]
[346968620,1735439441503,-500.0,0.00015393,2]
[346968622,1735439441512,-500.0,0.00015393,2]
[346968624,1735439441521,-450.102748,0.00015393,2]
[346968626,1735439441530,-151.0,0.00015393,2]
[346968628,1735439441540,-450.102748,0.00015393,2]
[346968630,1735439441549,-151.0,0.00015393,2]
[346968632,1735439441558,-745.36,0.00015393,2]
[346968634,1735439441569,-1218.41,0.00015393,2]
[346968636,1735439441579,-500.0,0.00015464,2]
[346968638,1735439441588,-500.0,0.00015464,2]
[346968640,1735439441597,-684.52,0.00015464,2]
[346968642,1735439441607,-640.41,0.00015464,2]
[346968644,1735439441616,-616.07,0.00015464,2]
[346968646,1735439441626,-151.0,0.00015464,2]
[346968648,1735439441635,-151.135767,0.00015464,2]
[346968650,1735439441646,-340.3865041,0.00015464,2]
[346968652,1735439441656,-500.0,0.00015464,2]
[346968654,1735439441665,-174.832602,0.00015464,2]
[346968656,1735439441674,-174.832602,0.00015464,2]
[346968658,1735439441683,-684.4,0.00015464,2]
[346968660,1735439441692,-1226.21,0.00015464,2]
[346968662,1735439441701,-807.58981921,0.00015599,2]
[346968664,1735439441710,-587.0,0.00015631,2]
[346968666,1735439441719,-1936.78,0.00015667,2]
[346968668,1735439441728,-849.27,0.00015667,2]
[346968669,1735439441737,-500.0,0.00015667,2]
[346968671,1735439441746,-500.0,0.00015667,2]
[346968674,1735439441756,-414.77147382,0.00015667,2]
[346968675,1735439441765,-745.36,0.00015667,2]
[346968677,1735439441774,-1218.41,0.00015667,2]
[346968679,1735439441783,-13850.2757897,0.00015692,2]
[346968681,1735439441792,-151.0,0.00015692,2]
[346968683,1735439441801,-368.149642,0.00015692,2]
[346968685,1735439441810,-368.149642,0.00015692,2]
[346968687,1735439441820,-151.20831,0.00015692,2]
[346968689,1735439441829,-151.0,0.00015692,2]
[346968700,1735439441915,-151.0,0.00015692,2]
[346968702,1735439441926,-904.181394,0.00015692,2]
[346968704,1735439441935,-904.181394,0.00015692,2]
[346968706,1735439441945,-796.928812,0.00015692,2]
[346968708,1735439441954,-796.928812,0.00015692,2]
[346968710,1735439441964,-152.389257,0.00015692,2]
[346968712,1735439441973,-450.102748,0.00015692,2]
[346968714,1735439441983,-151.0,0.00015692,2]
[346968716,1735439441992,-450.102748,0.00015692,2]
[346968718,1735439442002,-151.0,0.00015692,2]
[346968720,1735439442012,-191.115769,0.00015692,2]
[346968722,1735439442021,-191.115769,0.00015692,2]
[346968724,1735439442030,-500.0,0.00015738,2]
[346968726,1735439442040,-500.0,0.00015738,2]
[346968728,1735439442049,-684.52,0.00015738,2]
[346968730,1735439442058,-640.41,0.00015738,2]
[346968732,1735439442068,-616.07,0.00015738,2]
[346968734,1735439442077,-151.0,0.00015738,2]
[346968737,1735439442086,-172.79968618,0.00015738,2]
[346968739,1735439442096,-174.832602,0.00015738,2]
[346968741,1735439442105,-174.832602,0.00015738,2]
[346968742,1735439442114,-684.4,0.00015738,2]
[346968745,1735439442123,-1226.21,0.00015738,2]
[346968747,1735439442132,-1936.78,0.00015941,2]
[346968748,1735439442142,-849.27,0.00015941,2]
[346968751,1735439442151,-500.0,0.00015941,2]
[346968753,1735439442161,-500.0,0.00015941,2]
[346968755,1735439442170,-745.36,0.00015941,2]
[346968757,1735439442180,-1218.41,0.00015941,2]
[346968759,1735439442189,-18801.294159,0.00016012,2]
[346968761,1735439442198,-89317.35487711,0.00016012,2]
[346968763,1735439442207,-500.0,0.00016012,2]
[346968765,1735439442216,-500.0,0.00016012,2]
[346968767,1735439442226,-684.52,0.00016012,2]
[346968769,1735439442237,-640.41,0.00016012,2]
[346968770,1735439442246,-616.07,0.00016012,2]
[346968773,1735439442255,-684.4,0.00016012,2]
[346968774,1735439442265,-1226.21,0.00016012,2]
[346968777,1735439442275,-191.115769,0.00016012,2]
[346968779,1735439442284,-191.115769,0.00016012,2]
[346968781,1735439442293,-807.58981921,0.00016178,2]
[346968783,1735439442302,-1936.78,0.00016215,2]
[346968785,1735439442311,-849.27,0.00016215,2]
[346968787,1735439442320,-500.0,0.00016215,2]
[346968789,1735439442330,-500.0,0.00016215,2]
[346968791,1735439442339,-450.102748,0.00016215,2]
[346968793,1735439442348,-151.0,0.00016215,2]
[346968795,1735439442357,-450.102748,0.00016215,2]
[346968797,1735439442366,-151.0,0.00016215,2]
[346968799,1735439442375,-745.36,0.00016215,2]
[346968801,1735439442385,-1218.41,0.00016215,2]
[346968803,1735439442394,-151.0,0.00016286,2]
[346968805,1735439442403,-368.149642,0.00016286,2]
[346968807,1735439442412,-368.149642,0.00016286,2]
[346968809,1735439442421,-500.0,0.00016286,2]
[346968811,1735439442430,-500.0,0.00016286,2]
[346968813,1735439442439,-684.52,0.00016286,2]
[346968815,1735439442449,-640.41,0.00016286,2]
[346968817,1735439442458,-151.0,0.00016286,2]
[346968819,1735439442468,-151.0,0.00016286,2]
[346968820,1735439442478,-616.07,0.00016286,2]
[346968822,1735439442487,-904.181394,0.00016286,2]
[346968823,1735439442496,-904.181394,0.00016286,2]
[346968824,1735439442505,-796.928812,0.00016286,2]
[346968825,1735439442514,-796.928812,0.00016286,2]
[346968826,1735439442523,-684.4,0.00016286,2]
[346968827,1735439442532,-1226.21,0.00016286,2]
[346968828,1735439442541,-7069.58079664,0.00016324,2]
[346968829,1735439442550,-152.590825,0.00016376,2]
[346968830,1735439442559,-174.832602,0.00016376,2]
[346968831,1735439442570,-174.832602,0.00016376,2]
[346968832,1735439442580,-191.115769,0.00016376,2]
[346968833,1735439442589,-191.115769,0.00016376,2]
[346968834,1735439442598,-401.40842494,0.00016394,2]
[346968835,1735439442607,-384.70734706,0.00016438,2]
[346968836,1735439442616,-1936.78,0.00016489,2]
[346968838,1735439442626,-849.27,0.00016489,2]
[346968840,1735439442635,-500.0,0.00016489,2]
[346968842,1735439442646,-500.0,0.00016489,2]
[346968844,1735439442656,-450.102748,0.00016489,2]
[346968846,1735439442664,-151.0,0.00016489,2]